bitfinex-derivatives/quotes_ETHF0:USTF0_20220103
["timestamp","ask_amount","ask_price","bid_price","bid_amount"]
[1641252456725,1.5,3761.5,3761.2,2.00479]
[1641252456924,0.229991,3761.4,3760.8,2.00479]
[1641252458623,11.649991,3761.4,3760.8,2.00479]
[1641252459625,2.00479,3761.5,3760.9,0.128157]
[1641252461626,2.00479,3761.5,3760.8,2.00479]
[1641252461828,2.00479,3761.5,3760.9,0.128157]
[1641252463029,2.00479,3761.5,3760.8,2.00479]
[1641252469236,11.42,3761.4,3760.8,2.00479]
[1641252469440,1.5,3761.2,3760.8,2.00479]
[1641252469636,13.5752,3761.4,3760.8,2.00479]
[1641252472143,12.0752,3761.4,3760.8,2.00479]
[1641252481850,29.14598467,3760.9,3760.3,2.00479]
[1641252482052,29.14598467,3760.9,3759.9,1.3288701]
[1641252482053,40.56598467,3760.9,3759.9,1.3288701]
[1641252483052,2.00479,3760.5,3759.9,1.3288701]
[1641252483452,2.00479,3760.5,3759.9,1.4570271]
[1641252484653,2.00479,3760.5,3759.9,1.3288701]
[1641252485656,2.00479,3760.5,3759.7,2.00479]
[1641252485856,2.00479,3760.5,3759.8,0.128157]
[1641252491263,0.573,3760.6,3759.8,0.128157]
[1641252491462,40.56598467,3760.9,3759.8,0.128157]
[1641252491863,2.00479,3760.5,3759.8,0.128157]
[1641252492163,2.58379,3760.5,3759.8,0.128157]
[1641252493764,2.00479,3760.5,3759.8,0.128157]
[1641252495169,40.56598467,3760.9,3759.8,0.128157]
[1641252495767,2.00479,3760.5,3759.8,0.128157]
[1641252497170,40.56598467,3760.9,3759.8,0.128157]
[1641252497768,2.00479,3760.5,3759.8,0.128157]
[1641252503682,2.62629,3760.5,3759.8,0.128157]
[1641252504485,0.6215,3760.5,3759.9,1.5]
[1641252504687,2.00479,3760.9,3759.9,2.2587]
[1641252505286,1.70639,3760.9,3759.9,2.2587]
[1641252505485,1.48951514,3761.0,3760.3,2.8287412]
[1641252505885,1.48951514,3761.0,3760.8,2.00479]
[1641252506088,1.78681883,3761.3,3760.9,0.128157]
[1641252506286,1.41431883,3761.3,3761.2,1.32835113]
[1641252506492,2.00479,3761.7,3761.2,1.32835113]
[1641252508395,2.00479,3762.0,3761.2,1.32835113]
[1641252509195,19.8569,3762.8,3761.2,1.32835113]
[1641252509792,0.53743545,3761.9,3761.2,1.32835113]
[1641252509991,0.53743545,3761.9,3761.6,2.00479]
[1641252510392,0.53743545,3761.9,3761.7,0.128157]
[1641252512093,0.53743545,3762.4,3761.7,0.128157]
[1641252520905,0.53743545,3762.4,3761.6,2.00479]
[1641252521107,1.11933545,3762.4,3761.6,2.00479]
[1641252523811,1.50093038,3762.2,3761.6,2.00479]
[1641252524612,1.50093038,3762.2,3761.6,2.132947]
[1641252524816,0.53743545,3762.2,3761.6,2.132947]
[1641252526215,0.53743545,3762.1,3761.6,2.132947]
[1641252526416,0.53743545,3762.1,3761.6,2.00479]
[1641252527017,0.53743545,3762.0,3761.6,2.00479]
[1641252528420,0.53743545,3761.9,3761.6,2.00479]
[1641252529422,0.229991,3761.8,3761.6,2.00479]
[1641252529622,2.08283038,3762.4,3761.6,2.00479]
[1641252530825,0.50872303,3762.3,3761.6,2.00479]
[1641252532225,0.50872303,3762.3,3761.3,0.128157]
[1641252532724,2.00479,3762.3,3761.4,2.00479]
[1641252534027,0.50872303,3762.2,3761.4,2.00479]
[1641252536429,2.00479,3762.3,3761.4,2.00479]
[1641252540232,0.50872658,3762.2,3761.4,2.00479]
[1641252540435,1.30912658,3762.2,3761.4,2.00479]
[1641252541433,0.50872658,3762.1,3761.4,2.00479]
[1641252546636,1.11402658,3762.1,3761.4,2.00479]
[1641252547539,0.6053,3762.1,3761.4,2.00479]
[1641252548438,0.50872658,3762.0,3761.4,2.00479]
[1641252549236,0.6053,3762.1,3761.4,2.00479]
[1641252550740,0.508717,3762.0,3761.4,2.00479]
[1641252551839,0.508717,3762.2,3761.4,2.00479]
[1641252554948,2.00479,3761.6,3761.2,1.32841466]
[1641252555846,13.42479,3761.6,3760.9,2.97051104]
[1641252556048,13.42479,3761.6,3760.7,2.00479]
[1641252556246,1.5,3761.5,3760.7,1.48149536]
[1641252556649,13.42479,3761.6,3760.7,1.48149536]
[1641252557149,2.00479,3761.6,3760.7,1.48149536]
[1641252557848,2.00479,3761.6,3760.8,0.128157]
[1641252558050,1.50093038,3761.4,3760.8,0.128157]
[1641252559250,0.56070804,3761.5,3760.8,0.128157]
[1641252559749,0.56070804,3761.5,3760.9,0.90754558]
[1641252560351,2.00479,3761.6,3760.9,0.90754558]
[1641252562152,1.50093038,3762.1,3761.0,1.32846583]
[1641252562550,1.50093038,3762.1,3761.6,1.32827703]
[1641252562753,2.23352354,3762.7,3761.7,0.128157]
[1641252562952,2.23352354,3762.7,3762.1,2.00479]
[1641252563154,2.23352354,3762.7,3762.1,3.33286416]
[1641252563354,2.23252354,3762.7,3762.2,5.752604]
[1641252563555,2.23252354,3762.7,3762.6,1.32790838]
[1641252563556,1e-08,3762.7,3762.6,1.32790838]
[1641252563753,2.25045237,3763.3,3762.6,2.03320838]
[1641252563952,1.8003619,3763.1,3762.6,6.28553038]
[1641252564153,1.8003619,3763.1,3762.7,1.20762715]
[1641252564654,1.8003619,3763.1,3762.8,4.252039]
[1641252564853,1.8003619,3763.1,3762.9,0.128157]
[1641252565055,1.8003619,3763.1,3763.0,4.00958]
[1641252565253,3.00060317,3763.6,3763.0,8.261506]
[1641252565854,0.50280458,3763.8,3763.0,8.261506]
[1641252566955,0.50280458,3763.9,3763.0,8.261506]
[1641252567956,0.50280458,3764.1,3763.0,8.261506]
[1641252571061,11.92280458,3764.1,3763.0,4.00958]
[1641252571858,1.5,3764.0,3763.0,4.00958]
[1641252572157,2.3359,3764.0,3763.0,4.00958]
[1641252572558,0.15008614,3763.9,3763.0,4.00958]
[1641252572758,2.3359,3764.0,3763.0,4.00958]
[1641252572957,0.8359,3764.0,3763.0,4.00958]
[1641252573661,1.49996195,3763.6,3763.0,4.00958]
[1641252574361,1.49996195,3763.6,3763.0,4.137737]
[1641252575162,1.49996195,3763.6,3763.0,4.00958]
[1641252575362,1.49996195,3763.7,3763.0,4.00958]
[1641252578570,1.49996195,3763.7,3763.0,4.137737]
[1641252579168,1.49996195,3763.7,3763.0,4.698837]
[1641252579369,1.49996195,3763.7,3763.0,2.56589]
[1641252579370,1.5,3763.7,3763.0,2.56589]
[1641252579572,1.5,3763.7,3763.0,2.00479]
[1641252580369,1.49996195,3763.5,3763.0,2.00479]
[1641252580571,2.17276195,3763.5,3763.0,2.00479]
[1641252581772,0.50280458,3763.4,3763.0,2.00479]
[1641252584272,11.92280458,3763.4,3763.0,2.00479]
[1641252584772,11.92280458,3763.4,3761.9,4.81442379]
[1641252584773,1.5,3763.1,3761.9,4.81442379]
[1641252584976,1.5,3762.7,3761.9,4.81442379]
[1641252585174,2.00479,3762.4,3761.9,4.81442379]
[1641252585874,2.00479,3762.4,3761.9,1.86166818]
[1641252586674,2.00479,3762.4,3761.9,1.98982518]
[1641252587574,0.50280458,3762.3,3761.9,1.98982518]
[1641252587778,0.50280458,3762.3,3761.9,0.128157]
[1641252588978,2.00479,3762.4,3761.9,0.128157]
[1641252593585,1.49996195,3763.6,3762.3,2.82796834]
[1641252593789,1.49996195,3763.6,3763.2,1.32770387]
[1641252593986,1.49996195,3763.6,3763.2,2.24406087]
[1641252594586,1.49996195,3763.6,3763.2,3.49171764]
[1641252594787,1.49996195,3763.6,3763.2,3.36356064]
[1641252595187,2.00479,3763.4,3763.2,3.36356064]
[1641252595391,0.229991,3763.3,3763.2,3.36356064]
[1641252595588,2.00479,3763.4,3763.2,3.36356064]
[1641252595888,2.00479,3763.7,3763.2,3.36356064]
[1641252596691,2.00479,3763.7,3763.2,0.7882]
[1641252596894,2.00479,3763.7,3762.9,1.32782199]
[1641252597291,2.00479,3763.7,3763.0,2.00479]
[1641252597492,2.00479,3763.7,3763.1,0.128157]
[1641252600297,2.00479,3763.7,3763.2,1.32771092]
[1641252600795,2.00479,3763.7,3763.1,0.128157]
[1641252601197,2.00479,3763.7,3763.2,0.85470035]
[1641252601998,18.67309,3764.2,3763.2,0.85470035]
[1641252603299,18.67309,3764.2,3763.5,2.00479]
[1641252603599,2.00479,3764.2,3763.5,2.00479]
[1641252603798,1.5,3764.0,3763.5,2.00479]
[1641252604001,2.1722,3764.0,3763.5,2.00479]
[1641252604201,13.5922,3764.0,3763.5,2.00479]
[1641252604401,13.5922,3764.0,3763.0,2.00479]
[1641252604600,1.5,3763.7,3763.0,2.00479]
[1641252605301,2.00479,3763.6,3763.0,2.00479]
[1641252605901,2.50662784,3763.6,3763.0,2.00479]
[1641252607201,2.00479,3763.6,3763.0,2.00479]
[1641252611205,13.42479,3763.6,3763.0,2.00479]
[1641252612108,2.00479,3763.6,3763.0,2.00479]
[1641252616209,1.5,3763.4,3762.7,0.81972667]
[1641252616411,1.5,3763.4,3762.4,2.00479]
[1641252616811,2.00479,3763.6,3762.4,2.00479]
[1641252617311,1.5,3763.4,3762.4,2.00479]
[1641252617509,2.00479,3763.0,3762.4,2.00479]
[1641252617709,2.80789,3763.0,3762.4,2.00479]
[1641252621013,14.22789,3763.0,3762.4,2.00479]
[1641252621214,1.5,3762.7,3761.2,1.93466612]
[1641252621414,2.00479,3762.2,3761.3,2.00479]
[1641252621615,2.81119,3762.2,3761.3,2.00479]
[1641252622217,14.23119,3762.2,3761.2,1.21000824]
[1641252622419,14.23119,3762.2,3761.1,4.28120733]
[1641252622622,1.5,3761.9,3760.7,2.95275561]
[1641252622817,1.5,3761.7,3760.7,2.95275561]
[1641252623418,2.00479,3761.4,3760.7,2.95275561]
[1641252623619,1.5,3760.8,3760.4,3.71731073]
[1641252623918,1.5,3760.7,3758.6,18.7993]
[1641252624320,1.5,3761.0,3758.6,18.7993]
[1641252624519,1.5,3761.0,3760.2,1.92512472]
[1641252624719,1.32919157,3760.9,3760.2,1.92512472]
[1641252625119,1.32919157,3760.9,3760.3,0.128157]
[1641252625519,2.00479,3760.4,3760.2,1.92512472]
[1641252626119,2.00479,3760.4,3759.8,1.5]
[1641252626320,1e-08,3760.4,3759.8,1.5]
[1641252626718,1e-08,3760.4,3759.9,1.019783]
[1641252627121,2.00479,3761.4,3759.9,1.019783]
[1641252627320,2.00479,3761.4,3760.0,0.128157]
[1641252627534,2.00479,3761.4,3760.2,2.00479]
[1641252628322,13.42479,3761.4,3760.2,2.00479]
[1641252628722,14.92479,3761.4,3760.2,2.00479]
[1641252629423,13.42479,3761.4,3760.2,2.00479]
[1641252630028,0.56305593,3761.3,3760.2,2.00479]
[1641252630225,1.26825593,3761.3,3760.2,2.00479]
[1641252631228,0.56305593,3761.2,3760.2,2.00479]
[1641252631628,11.42,3761.1,3760.2,2.00479]
[1641252632029,1.32913504,3761.0,3760.2,2.00479]
[1641252632731,2.82913504,3761.0,3760.2,2.00479]
[1641252632929,11.42,3760.9,3760.2,2.00479]
[1641252633133,1.32913504,3761.0,3760.2,2.00479]
[1641252636633,11.42,3760.9,3760.2,2.00479]
[1641252636833,11.9387,3760.9,3760.2,2.00479]
[1641252637934,0.5187,3760.9,3760.2,2.00479]
[1641252638135,3.50475195,3761.4,3760.3,0.128157]
[1641252638431,3.50475195,3761.4,3760.3,0.906957]
[1641252639236,2.00479,3761.4,3760.3,0.906957]
[1641252639533,2.00479,3761.4,3760.2,2.00479]
[1641252639734,2.60369,3761.4,3760.2,2.00479]
[1641252639934,14.02369,3761.4,3760.2,2.00479]
[1641252640336,2.60369,3761.4,3760.2,2.00479]
[1641252641238,1.49996195,3761.9,3760.6,1.32852055]
[1641252641438,1.49996195,3761.9,3761.6,2.00479]
[1641252641640,0.229991,3761.8,3761.6,2.65979]
[1641252642840,0.229991,3761.8,3761.6,2.00479]
[1641252643739,0.6632,3762.2,3761.6,2.00479]
[1641252644539,0.56294283,3762.1,3761.6,2.00479]
[1641252645941,0.56294283,3762.3,3761.6,2.00479]
[1641252646345,0.56294283,3762.3,3761.7,0.128157]
[1641252646943,0.56294283,3762.3,3761.7,1.628157]
[1641252647645,0.56294283,3762.3,3762.1,2.00479]
[1641252648247,1.49996195,3762.5,3762.1,2.00479]
[1641252648445,19.0969,3763.1,3762.2,1.07918275]
[1641252648648,2.00479,3762.8,3762.2,1.07918275]
[1641252655852,2.00479,3762.8,3762.1,2.00479]
[1641252656056,11.42,3762.7,3762.1,2.00479]
[1641252656252,2.00479,3762.8,3762.1,2.00479]
[1641252657153,2.00479,3762.8,3762.2,0.128157]
[1641252657356,2.00479,3762.8,3762.2,1.628157]
[1641252657553,1.49996195,3763.2,3762.2,0.128157]
[1641252657954,19.4341,3763.3,3762.2,0.128157]
[1641252658855,3.50475195,3763.4,3762.3,2.82794189]
[1641252659256,2.00479,3763.4,3762.3,2.82794189]
[1641252659455,2.00479,3763.4,3762.6,1.5]
[1641252659656,2.00479,3763.8,3763.0,2.00479]
[1641252659858,2.00479,3763.8,3763.1,0.128157]
[1641252660058,2.00479,3763.8,3763.1,2.443757]
[1641252660264,1.49996195,3764.1,3763.5,1.5]
[1641252660860,1.79993785,3764.4,3763.2,1.32762102]
[1641252660861,1.49996195,3764.4,3763.2,2.82762102]
[1641252661559,1.49996195,3764.4,3764.1,2.00479]
[1641252662159,0.229991,3764.3,3764.1,2.00479]
[1641252662362,1.039891,3764.3,3764.1,2.00479]
[1641252662962,0.8099,3764.3,3764.1,2.00479]
[1641252663361,2.00479,3764.9,3764.1,2.00479]
[1641252663962,3.50475195,3764.9,3764.1,2.00479]
[1641252665666,1.5,3764.8,3764.1,4.00958]
[1641252665863,1.5,3764.8,3763.9,1.14474525]
[1641252665864,11.42,3764.7,3763.0,1.32768977]
[1641252666463,12.74785372,3764.7,3762.8,2.96578215]
[1641252666864,12.74785372,3764.7,3762.9,1.30856307]
[1641252667066,1.32785372,3764.7,3763.0,1.5]
[1641252667266,1.32785372,3764.7,3763.0,2.1219]
[1641252667267,0.56258322,3764.6,3763.0,2.1219]
[1641252667666,2.00479,3764.0,3763.1,2.00479]
[1641252667865,2.00479,3764.0,3763.2,1.628157]
[1641252668066,2.00479,3764.0,3763.4,1.32755405]
[1641252668768,2.00479,3764.0,3763.5,0.87928759]
[1641252669667,2.00479,3764.4,3763.5,2.88407759]
[1641252670668,13.42479,3764.4,3763.5,2.00479]
[1641252670869,2.00479,3764.4,3763.5,2.00479]
[1641252672969,2.00479,3764.4,3763.6,0.128157]
[1641252674271,2.00479,3764.4,3763.3,1.02532431]
[1641252675276,0.56254061,3764.3,3763.3,1.02532431]
[1641252675773,0.56254061,3764.3,3763.5,2.00479]
[1641252675973,1.26594061,3764.3,3763.5,2.00479]
[1641252676175,1.26594061,3764.3,3763.6,0.128157]
[1641252676381,1.5,3764.0,3763.1,2.96578215]
[1641252676977,1.32801067,3764.2,3763.1,2.96578215]
[1641252677576,0.56254061,3764.3,3763.1,5.17718215]
[1641252677776,0.56254061,3764.3,3763.3,2.00479]
[1641252679180,2.06250256,3764.1,3763.3,2.00479]
[1641252680180,1.49996195,3764.2,3763.3,2.00479]
[1641252681379,1.49996195,3764.1,3763.3,2.00479]
[1641252681682,2.00479,3764.0,3763.3,2.00479]
[1641252681880,13.42479,3764.0,3763.3,2.00479]
[1641252682280,2.00479,3764.0,3763.3,2.00479]
[1641252683681,0.56254061,3763.9,3763.3,2.00479]
[1641252684081,0.56254061,3763.9,3763.4,1.14331774]
[1641252684885,2.00479,3764.0,3763.4,1.14331774]
[1641252688289,2.00479,3764.0,3763.4,1.27147474]
[1641252690691,1e-08,3764.0,3763.4,3.30287474]
[1641252692097,2.00479,3764.4,3763.4,3.30287474]
[1641252693695,2.00479,3764.8,3763.4,3.30287474]
[1641252694194,2.00479,3764.8,3764.1,2.00479]
[1641252694698,2.00479,3764.8,3764.2,0.128157]
[1641252694896,2.00479,3764.8,3764.2,0.877857]
[1641252697204,2.00479,3764.8,3764.2,0.7497]
[1641252698001,2.00479,3764.8,3764.1,3.33208326]
[1641252698203,2.66079,3764.8,3764.1,2.00479]
[1641252698804,2.66079,3764.8,3763.7,1.32742188]
[1641252699706,2.66079,3764.8,3763.4,0.76779329]
[1641252700104,2.00479,3764.4,3763.4,0.76779329]
[1641252706908,2.00479,3764.4,3763.3,2.00479]
[1641252707307,13.42479,3764.4,3763.3,2.00479]
[1641252709009,1.5,3764.3,3763.3,2.00479]
[1641252709209,11.42,3764.2,3763.3,2.00479]
[1641252712313,11.42,3764.2,3762.7,1.32778496]
[1641252714115,11.42,3764.3,3762.7,1.32778496]
[1641252714315,2.00479,3763.5,3762.7,1.32778496]
[1641252714515,2.00479,3763.5,3762.8,0.128157]
[1641252715921,2.00479,3764.4,3762.8,0.128157]
[1641252716118,2.00479,3764.4,3762.8,0.761957]
[1641252716318,2.00479,3764.4,3763.5,2.00479]
[1641252717721,2.00479,3764.4,3763.6,0.128157]
[1641252717923,2.00479,3764.4,3763.6,0.674057]
[1641252721029,1.5,3764.3,3762.7,1.88608496]
[1641252721231,1.5,3763.6,3762.6,2.00479]
[1641252721428,0.5439,3763.6,3762.6,2.00479]
[1641252722331,0.5439,3763.6,3763.0,2.00479]
[1641252723133,11.42,3763.7,3763.0,2.00479]
[1641252724131,12.92,3763.7,3763.0,2.00479]
[1641252725535,11.42,3763.7,3763.0,2.00479]
[1641252726935,11.42,3763.7,3762.6,2.00479]
[1641252727537,1.5,3763.6,3762.6,2.00479]
[1641252727739,1.32840583,3763.1,3761.5,20.3857]
[1641252728138,1.5,3762.6,3761.5,20.3857]
[1641252728340,13.6211,3762.6,3761.4,2.00479]
[1641252728536,13.42479,3762.3,3761.4,2.00479]
[1641252729840,2.00479,3762.3,3761.4,2.00479]
[1641252730039,2.00479,3762.3,3761.5,0.128157]
[1641252731443,13.42479,3762.3,3761.5,0.128157]
[1641252731643,13.42479,3762.3,3761.4,2.00479]
[1641252731842,14.26129,3762.3,3761.4,2.00479]
[1641252733349,14.26129,3762.3,3761.5,0.128157]
[1641252736052,14.26129,3762.3,3761.4,2.00479]
[1641252736255,16.91410706,3762.3,3761.4,2.00479]
[1641252736954,16.91410706,3762.3,3760.4,20.2846]
[1641252738653,2.00479,3761.2,3760.4,22.28939]
[1641252738854,2.00479,3761.2,3760.5,0.128157]
[1641252739454,2.00479,3761.2,3760.4,2.00479]
[1641252739854,11.42,3761.1,3760.4,2.00479]
[1641252740554,2.00479,3761.2,3760.4,2.00479]
[1641252740756,11.42,3761.1,3760.4,2.00479]
[1641252741155,2.00479,3761.2,3760.4,2.00479]
[1641252741355,2.00479,3761.2,3760.5,0.128157]
[1641252743561,0.79752366,3761.7,3760.5,0.128157]
[1641252743761,20.81001183,3762.0,3760.5,0.856357]
[1641252744161,19.4812,3762.0,3760.5,0.856357]
[1641252744561,2.00479,3761.2,3760.5,0.856357]
[1641252745663,2.61579,3761.2,3760.3,2.00479]
[1641252745865,2.61579,3761.2,3760.4,0.128157]
[1641252746665,2.00479,3761.2,3760.4,0.830757]
[1641252748266,2.00479,3761.6,3760.4,0.830757]
[1641252748468,19.4812,3762.0,3760.4,0.830757]
[1641252748669,21.48599,3762.0,3761.2,2.00479]
[1641252748869,1.32902375,3761.4,3760.3,2.00479]
[1641252749069,1.5,3761.0,3759.3,23.48991311]
[1641252749269,11.42,3760.9,3759.3,3.70701311]
[1641252750370,1.5,3760.7,3759.3,3.70701311]
[1641252750572,2.00479,3759.9,3759.2,1.32902375]
[1641252750770,2.70099,3759.9,3759.4,0.128157]
[1641252752372,2.70099,3759.9,3759.2,1.32902375]
[1641252753273,2.70099,3759.9,3759.3,0.128157]
[1641252753473,2.00479,3759.9,3759.3,0.128157]
[1641252755879,2.00479,3759.9,3759.4,2.96578215]
[1641252756280,2.00479,3759.9,3759.4,3.74488215]
[1641252757380,2.00479,3759.9,3759.6,2.96578215]
[1641252758385,2.00479,3760.3,3759.7,4.46578215]
[1641252758584,2.00479,3760.9,3760.1,2.00479]
[1641252758786,2.00479,3760.9,3760.2,0.128157]
[1641252758985,2.00479,3760.9,3760.2,0.822757]
[1641252759188,2.00479,3760.9,3760.2,0.6946]
[1641252760485,2.00479,3760.9,3760.1,4.97057215]
[1641252761690,2.00479,3760.9,3760.2,0.128157]
[1641252762287,2.00479,3760.9,3760.1,2.00479]
[1641252765691,2.55669,3760.9,3760.1,2.00479]
[1641252767691,2.55669,3760.9,3760.1,2.132947]
[1641252768592,2.00479,3760.9,3760.1,2.132947]
[1641252769095,2.00479,3760.9,3760.1,2.00479]
[1641252771597,2.00479,3760.9,3760.2,0.128157]
[1641252771796,2.00479,3761.3,3760.3,2.82864764]
[1641252771998,2.00479,3761.3,3760.6,1.5]
[1641252772897,19.28939,3761.7,3760.8,2.00479]
[1641252773098,2.00479,3761.7,3760.8,2.00479]
[1641252775002,2.00479,3761.7,3760.8,2.59299]
[1641252776408,2.00479,3761.7,3761.0,1.32840583]
[1641252776605,2.00479,3761.7,3761.1,0.128157]
[1641252779412,2.00479,3761.7,3761.0,1.32840583]
[1641252779908,2.00479,3761.7,3761.1,0.128157]
[1641252780108,2.00479,3762.0,3761.1,0.128157]
[1641252780310,2.00479,3762.0,3761.2,1.5]
[1641252780913,2.00479,3762.0,3761.5,2.00479]
[1641252782918,2.00479,3762.0,3761.6,1.5]
[1641252783112,2.00479,3762.0,3761.5,2.00479]
[1641252783113,2.00479,3762.7,3761.9,1.32809003]
[1641252783312,2.00479,3762.7,3762.0,1.628157]
[1641252783511,2.00479,3762.7,3762.0,0.128157]
[1641252785114,2.00479,3762.7,3761.9,1.32809003]
[1641252785313,2.52909,3762.7,3761.9,1.32809003]
[1641252785714,2.52909,3762.7,3761.5,5.33780763]
[1641252787016,2.52909,3762.7,3762.1,2.00479]
[1641252788215,0.56276405,3762.6,3762.1,2.00479]
[1641252799324,0.56276405,3762.6,3761.5,2.00479]
[1641252800328,2.062726,3762.6,3761.5,2.00479]
[1641252800524,13.482726,3762.6,3761.5,2.00479]
[1641252801427,2.062726,3762.5,3761.5,2.00479]
[1641252802331,0.56276405,3762.5,3761.5,2.00479]
[1641252803531,0.56276405,3762.6,3761.5,2.00479]
[1641252803732,0.56276405,3762.6,3761.5,2.81249]
[1641252804843,0.56276405,3762.6,3761.5,5.77827215]
[1641252806535,2.00479,3762.7,3761.5,5.77827215]
[1641252806937,2.00479,3762.7,3761.5,2.81249]
[1641252811239,2.00479,3762.7,3762.1,2.00479]
[1641252811440,2.00479,3762.7,3762.2,0.128157]
[1641252812240,2.00479,3762.7,3762.1,2.00479]
[1641252820257,13.42479,3762.7,3762.1,2.00479]
[1641252823361,14.92479,3762.7,3762.1,2.00479]
[1641252823560,2.00479,3762.7,3762.1,2.00479]
[1641252825463,2.00479,3762.7,3762.1,2.77759]
[1641252835877,17.3777,3763.3,3762.1,0.7728]
[1641252836076,17.3777,3763.3,3762.0,0.128157]
[1641252837279,0.56274551,3763.2,3762.0,0.128157]
[1641252837478,2.00479,3762.9,3762.1,2.00479]
[1641252841686,2.00479,3762.9,3762.1,3.33279361]
[1641252842487,19.38249,3763.3,3762.1,3.33279361]
[1641252842686,19.38249,3763.3,3762.1,2.00479]
[1641252843187,2.00479,3763.3,3762.2,1.5]
[1641252843387,2.00479,3763.3,3762.7,2.00479]
[1641252843587,2.00479,3763.3,3762.8,0.128157]
[1641252843787,2.00479,3763.3,3762.8,0.745157]
[1641252844992,3.50475195,3763.9,3762.8,0.745157]
[1641252845193,2.00479,3763.9,3762.8,0.745157]
[1641252845395,2.00479,3763.9,3763.1,2.00479]
[1641252847496,0.56264455,3763.8,3763.1,2.00479]
[1641252847697,1.26974455,3763.8,3763.1,2.00479]
[1641252849000,0.56264455,3763.7,3763.1,2.00479]
[1641252850403,0.56264455,3763.7,3762.7,2.00479]
[1641252850607,1.5,3763.3,3762.1,2.96578215]
[1641252851605,2.00479,3762.9,3762.1,4.97057215]
[1641252851803,2.74109,3762.9,3762.2,0.128157]
[1641252852812,2.74109,3762.9,3762.1,2.00479]
[1641252856216,1.5,3762.6,3762.1,2.00479]
[1641252856417,1.5,3762.6,3761.7,2.00479]
[1641252856617,12.92,3762.6,3761.7,2.00479]
[1641252857619,2.00479,3762.3,3761.7,2.00479]
[1641252877642,2.00479,3762.3,3761.8,0.128157]
[1641252883449,2.00479,3762.3,3761.7,2.00479]
[1641252887552,2.00479,3762.3,3761.7,2.132947]
[1641252889857,2.00479,3762.9,3761.7,2.132947]
[1641252890061,2.00479,3762.9,3761.7,2.803647]
[1641252890962,0.56275635,3762.8,3761.7,2.803647]
[1641252891761,2.00479,3762.9,3761.7,2.803647]
[1641252892961,0.56274106,3762.8,3761.7,2.67549]
[1641252893161,1.25944106,3762.8,3761.7,2.00479]
[1641252894665,0.56274106,3762.7,3761.7,2.00479]
[1641252897069,0.56274106,3762.7,3762.1,1.32801772]
[1641252897269,0.56274106,3762.7,3762.2,0.128157]
[1641252898069,2.00479,3762.9,3762.2,0.128157]
[1641252898873,2.00479,3763.1,3762.2,0.128157]
[1641252900175,17.4397,3763.2,3762.6,2.00479]
[1641252900375,2.00479,3763.5,3762.6,2.00479]
[1641252904378,2.00479,3763.5,3762.7,0.128157]
[1641252905779,2.00479,3763.5,3762.6,2.00479]
[1641252905979,2.65919,3763.5,3762.6,2.00479]
[1641252907480,2.65919,3763.5,3762.7,0.128157]
[1641252908180,2.65919,3763.5,3762.6,2.00479]
[1641252911084,2.65919,3763.5,3762.7,0.128157]
[1641252911285,2.00479,3763.5,3762.7,0.128157]
[1641252913786,2.00479,3763.5,3762.8,1.5]
[1641252913988,2.00479,3763.9,3762.9,1.32770916]
[1641252914289,3.50475195,3764.3,3763.5,2.00479]
[1641252914486,3.50475195,3764.3,3763.6,0.128157]
[1641252914687,3.50475195,3764.3,3763.6,0.870257]
[1641252915491,2.00479,3764.3,3763.6,0.870257]
[1641252915690,2.00479,3764.3,3763.6,0.128157]
[1641252921296,2.00479,3764.3,3763.5,2.00479]
[1641252921696,2.00479,3764.3,3763.6,0.128157]
[1641252922095,2.00479,3764.3,3763.5,2.00479]
[1641252922299,2.74029,3764.3,3763.5,2.00479]
[1641252924901,2.74029,3764.3,3763.5,2.132947]
[1641252927601,2.74029,3764.3,3763.5,2.00479]
[1641252932010,0.56254309,3764.2,3763.5,2.132947]
[1641252932313,0.56254309,3764.2,3763.9,1.32737783]
[1641252932511,0.56254309,3764.2,3763.9,2.07997783]
[1641252932911,2.00479,3764.3,3763.9,2.07997783]
[1641252933513,2.00479,3764.7,3763.9,2.07997783]
[1641252934311,2.00479,3764.7,3764.0,2.00479]
[1641252946932,2.00479,3764.7,3764.0,3.50479]
[1641252947129,2.00479,3765.2,3764.3,1.32723337]
[1641252947329,2.00479,3765.2,3764.4,0.128157]
[1641252947529,2.00379,3765.2,3764.4,0.128157]
[1641252948834,2.00379,3765.2,3764.6,2.00479]
[1641252951336,2.00379,3765.2,3764.6,2.132947]
[1641252951933,2.00379,3765.2,3764.6,2.819547]
[1641252954640,2.00379,3765.2,3764.6,2.69139]
[1641252954840,2.00379,3765.2,3764.6,2.132947]
[1641252957141,2.75399,3765.2,3764.6,2.132947]
[1641252960242,2.75399,3765.2,3764.7,1.32707661]
[1641252960445,2.00479,3765.9,3764.7,1.32707661]
[1641252960846,35.1015,3766.1,3765.4,2.00479]
[1641252961345,17.4138,3766.1,3765.4,2.00479]
[1641252962245,17.4138,3766.1,3765.4,2.132947]
[1641252962447,2.06228247,3766.0,3765.4,2.132947]
[1641252963452,0.56232052,3766.0,3765.4,2.132947]
[1641252968854,0.56232052,3766.0,3765.8,2.00479]
[1641252969854,1.49996195,3766.4,3765.8,2.00479]
[1641252970056,3.50475195,3766.7,3765.8,2.00479]
[1641252971456,1.49996195,3766.4,3765.8,2.00479]
[1641252972655,3.80472785,3766.7,3765.8,2.00479]
[1641252972856,2.00479,3766.7,3765.8,2.00479]
[1641252977164,1.5,3766.4,3765.4,2.00479]
[1641252977962,14.10389,3766.7,3765.4,2.00479]
[1641252978163,1.5,3765.9,3765.4,2.00479]
[1641252978364,2.0538,3765.9,3765.4,2.00479]
[1641252978865,0.5538,3765.9,3765.4,2.00479]
[1641252979863,2.00479,3766.0,3765.4,2.00479]
[1641252981063,1.5,3765.9,3765.4,2.00479]